bitfinex-derivatives/quotes_ETHF0:USTF0_20250905
["timestamp","ask_amount","ask_price","bid_price","bid_amount"]
[1757096368040,0.52,4296.3,4296.2,0.4138]
[1757096368339,0.52,4296.4,4296.3,0.723]
[1757096369540,0.7318,4296.4,4296.3,0.723]
[1757096370244,0.52,4296.4,4296.3,0.723]
[1757096372332,0.7318,4296.4,4296.3,0.723]
[1757096375543,0.52,4296.4,4296.3,0.723]
[1757096375744,0.7318,4296.9,4296.8,0.723]
[1757096375945,0.96454,4296.9,4296.5,0.3092]
[1757096376249,0.7318,4296.9,4296.5,0.3092]
[1757096377047,0.7318,4296.9,4296.4,0.3092]
[1757096377236,0.7318,4296.9,4296.3,0.237]
[1757096377440,0.7318,4296.9,4296.4,0.3092]
[1757096378147,0.7318,4296.9,4296.3,0.237]
[1757096378645,0.7318,4296.9,4296.5,0.3092]
[1757096378840,0.7318,4296.9,4296.3,0.237]
[1757096379144,0.7318,4296.9,4296.4,0.3092]
[1757096379445,0.7318,4296.9,4296.3,0.237]
[1757096379649,0.7318,4296.9,4296.4,0.3092]
[1757096379945,0.7318,4296.9,4296.8,0.215]
[1757096380948,0.7318,4296.9,4296.8,0.723]
[1757096381943,0.2131,4296.9,4296.8,0.723]
[1757096382343,0.52,4296.9,4296.8,0.723]
[1757096383744,0.7318,4296.9,4296.8,0.723]
[1757096384649,0.7318,4296.9,4296.8,0.215]
[1757096385059,0.7318,4296.9,4296.8,0.5242]
[1757096385661,0.3069,4296.8,4296.7,3.754]
[1757096385862,0.7318,4296.8,4296.7,3.9528]
[1757096386062,0.7318,4296.8,4296.7,4.1678]
[1757096386257,0.7318,4296.8,4296.7,3.9308]
[1757096386656,0.7318,4296.8,4296.7,0.723]
[1757096392766,0.7318,4296.8,4296.7,0.237]
[1757096393364,0.7318,4296.8,4296.7,0.7357]
[1757096394567,0.7318,4296.8,4296.7,0.9447]
[1757096396058,0.7318,4296.8,4296.7,0.7077]
[1757096401474,3.3264,4297.5,4296.8,0.3001]
[1757096401669,1.27606309,4297.4,4297.3,0.7077]
[1757096401878,3.3249,4298.0,4297.3,0.7077]
[1757096401879,0.2327,4297.9,4297.3,0.4076]
[1757096402174,0.2959,4297.3,4297.2,3.2078]
[1757096402474,0.7001,4296.8,4296.7,3.4064]
[1757096402672,0.7001,4296.8,4296.7,3.7065]
[1757096403072,0.7001,4296.8,4296.7,3.9155]
[1757096405274,0.7001,4296.8,4296.7,3.4064]
[1757096405475,0.7001,4296.8,4296.7,3.7065]
[1757096405778,0.7001,4296.8,4296.7,3.9155]
[1757096407279,0.2959,4296.7,4296.6,0.1986]
[1757096407476,0.7001,4296.7,4296.6,0.7077]
[1757096408076,0.1281,4297.0,4296.6,0.7077]
[1757096408282,0.2959,4297.3,4296.7,0.3001]
[1757096408578,0.2959,4297.3,4296.6,3.2078]
[1757096408579,0.7001,4297.3,4296.6,3.2078]
[1757096408776,0.7001,4296.8,4296.7,0.4987]
[1757096409376,0.7001,4296.8,4296.7,0.7077]
[1757096410474,0.4042,4296.8,4296.6,0.237]
[1757096410675,0.7001,4296.7,4296.6,0.4356]
[1757096410876,0.7001,4296.7,4296.6,0.4987]
[1757096411081,0.7001,4296.7,4296.6,0.7077]
[1757096413587,0.2001,4296.7,4296.6,0.7077]
[1757096413885,0.496,4296.7,4296.6,0.7077]
[1757096415180,0.2001,4296.7,4296.6,0.7077]
[1757096415676,0.2959,4297.4,4296.7,0.3001]
[1757096415987,1.27717552,4297.3,4297.2,0.1986]
[1757096416190,1.50989552,4297.3,4297.2,0.1986]
[1757096416487,1.27717552,4297.3,4297.2,0.1986]
[1757096417685,1.27717552,4297.3,4297.0,0.3001]
[1757096417887,0.7001,4297.1,4297.0,0.4987]
[1757096418088,0.7001,4297.1,4297.0,0.7077]
[1757096418089,1.27717552,4297.1,4297.0,0.7077]
[1757096418291,0.7001,4297.1,4297.0,0.7077]
[1757096418894,0.7001,4297.1,4297.0,0.1986]
[1757096419277,0.7001,4297.1,4296.7,0.2988]
[1757096419482,0.8603,4297.0,4296.9,0.2102]
[1757096421088,0.8603,4297.0,4296.2,0.5358]
[1757096421089,0.3196,4296.9,4296.2,0.5358]
[1757096421290,0.7397,4296.3,4296.2,0.7134]
[1757096423687,0.5327,4297.1,4297.0,0.4146]
[1757096423998,0.7397,4297.1,4297.0,0.7134]
[1757096424687,1.3167484,4297.1,4297.0,0.7134]
[1757096425590,1.3167484,4297.1,4297.0,0.2102]
[1757096425890,0.7397,4297.1,4297.0,0.7134]
[1757096426596,0.7397,4297.1,4297.0,0.509]
[1757096426795,0.7397,4297.1,4297.0,0.2102]
[1757096427996,0.7397,4297.1,4297.0,0.509]
[1757096430388,0.7397,4297.1,4297.0,0.7134]
[1757096434300,0.3196,4296.6,4296.1,0.2988]
[1757096434491,3.2078,4296.5,4296.2,0.2988]
[1757096434799,0.7397,4296.9,4296.8,0.5032]
[1757096435000,0.7397,4296.8,4296.7,0.509]
[1757096435294,0.79039217,4296.8,4296.7,0.7134]
[1757096435494,0.237,4297.4,4296.7,3.6224]
[1757096435703,0.2131,4297.2,4297.1,0.4146]
[1757096435905,0.7397,4297.2,4297.1,0.7134]
[1757096437598,0.4201,4297.2,4296.8,0.2988]
[1757096437796,0.2131,4296.7,4296.6,0.7134]
[1757096437992,0.5327,4296.7,4296.6,0.7134]
[1757096438501,0.7397,4296.7,4296.6,0.7134]
[1757096440994,0.7397,4296.7,4296.1,3.4448]
[1757096441192,0.3196,4296.6,4296.1,3.4448]
[1757096441398,0.7397,4296.6,4296.5,0.7134]
[1757096444200,0.5327,4296.6,4296.5,0.7134]
[1757096444402,0.3196,4296.9,4296.5,0.5321]
[1757096444603,0.2131,4296.9,4296.8,0.4146]
[1757096444906,0.4201,4296.9,4296.8,0.7134]
[1757096445099,0.7397,4296.9,4296.8,0.7134]
[1757096446006,0.7397,4296.9,4296.8,0.2102]
[1757096446205,0.1206,4296.0,4295.4,0.2988]
[1757096446405,0.7397,4295.6,4295.5,2.50390719]
[1757096446608,0.7397,4295.6,4295.5,0.7134]
[1757096447205,0.7397,4295.6,4295.5,0.4146]
[1757096447711,0.7397,4295.6,4295.0,0.1277]
[1757096447912,0.7397,4295.1,4295.0,0.7134]
[1757096450912,0.7397,4295.1,4295.0,0.4146]
[1757096451110,0.7397,4295.1,4295.0,0.2102]
[1757096451715,0.7397,4295.1,4295.0,0.5208]
[1757096452308,0.7397,4295.1,4295.0,0.7189]
[1757096454806,0.2139,4295.2,4295.1,0.3106]
[1757096455010,0.5206,4295.2,4295.1,0.7034]
[1757096455419,0.7219,4295.2,4295.1,0.7034]
[1757096455821,0.7219,4295.2,4294.5,0.3545]
[1757096455822,0.7219,4294.7,4294.5,0.3106]
[1757096456022,0.7219,4294.7,4294.6,0.1947]
[1757096456216,0.7219,4294.7,4294.6,0.5053]
[1757096457129,0.7219,4294.7,4294.6,0.7034]
[1757096460930,0.7219,4294.7,4294.6,0.1947]
[1757096461125,0.122,4294.5,4294.3,0.3106]
[1757096461322,0.7219,4294.4,4294.3,0.5053]
[1757096461522,0.7219,4294.4,4294.3,0.1947]
[1757096462822,0.7219,4294.4,4294.3,0.7034]
[1757096466926,0.2139,4294.4,4294.3,0.7034]
[1757096467127,0.3067,4294.9,4294.4,0.3106]
[1757096467329,0.2139,4294.5,4294.4,0.7034]
[1757096467633,0.5206,4294.5,4294.4,0.7034]
[1757096467932,0.5206,4294.5,4294.0,0.1186]
[1757096467933,0.8439,4295.0,4294.9,0.7034]
[1757096468235,0.237,4295.1,4295.0,0.822]
[1757096468929,0.4509,4295.1,4295.0,0.822]
[1757096469127,0.7576,4295.1,4295.0,0.822]
[1757096473238,0.9589,4295.1,4295.0,0.7034]
[1757096473630,0.7219,4295.1,4295.0,0.7034]
[1757096474833,0.7219,4295.1,4295.0,0.822]
[1757096475036,1.40738119,4296.4,4295.0,0.822]
[1757096475037,3.2078,4295.7,4295.6,0.3106]
[1757096475240,0.7219,4296.6,4296.5,0.822]
[1757096475440,0.7219,4296.6,4296.5,0.7034]
[1757096475735,0.5206,4296.6,4296.5,0.822]
[1757096475942,0.2139,4296.6,4296.5,0.822]
[1757096476333,0.5206,4296.6,4296.5,0.822]
[1757096476832,0.7219,4296.6,4296.5,0.7034]
[1757096477748,0.2139,4296.1,4296.0,0.822]
[1757096478037,0.7219,4296.1,4296.0,0.822]
[1757096478541,0.5206,4296.1,4296.0,0.822]
[1757096478738,0.5314,4296.1,4296.0,0.822]
[1757096480441,0.2139,4296.1,4296.0,0.822]
[1757096481344,0.5314,4296.1,4296.0,0.822]
[1757096481543,0.726,4296.1,4296.0,0.822]
[1757096481731,0.1184,4296.0,4295.6,3.2078]
[1757096481931,0.4054,4295.2,4295.1,0.5303]
[1757096482135,0.4054,4295.2,4295.1,0.7312]
[1757096482136,0.7229,4295.2,4295.1,0.7312]
[1757096482835,0.7229,4295.2,4295.1,0.76297405]
[1757096483036,0.2108,4295.2,4295.1,0.76297405]
[1757096483640,0.5283,4295.2,4295.1,0.76297405]
[1757096483943,0.2108,4295.2,4295.1,0.76297405]
[1757096484744,0.5283,4295.2,4295.1,0.76297405]
[1757096485242,0.7229,4295.2,4295.1,0.76297405]
[1757096491941,8.16352,4295.2,4295.1,0.03177405]
[1757096492242,4.39952,4295.2,4295.1,0.03177405]
[1757096492946,4.1667,4295.2,4295.1,0.03177405]
[1757096495339,4.1667,4295.2,4295.1,0.56207405]
[1757096495534,4.1667,4295.2,4295.1,0.24007405]
[1757096495838,4.1667,4295.2,4295.1,0.56207405]
[1757096496239,4.1667,4295.2,4295.1,0.24007405]
[1757096496439,4.1667,4295.2,4295.1,0.03177405]
[1757096497643,3.9307,4295.2,4295.1,0.76297405]
[1757096497948,0.5283,4295.5,4295.4,0.4092]
[1757096498139,0.5283,4295.5,4295.4,0.7312]
[1757096498844,0.7229,4295.5,4295.4,0.76297405]
[1757096505939,3.2078,4295.7,4295.4,0.44097405]
[1757096506142,0.7643,4295.7,4295.6,0.7312]
[1757096506447,0.9589,4295.7,4295.6,0.7312]
[1757096507047,0.7229,4295.7,4295.6,0.76297405]
[1757096508249,3.9387,4296.4,4296.3,0.207]
[1757096508453,4.77233564,4296.4,4296.3,0.207]
[1757096508849,4.77233564,4296.4,4296.3,0.23877405]
[1757096509953,4.53633564,4296.4,4296.3,0.73077405]
[1757096510142,4.77233564,4296.4,4296.3,0.73077405]
[1757096512952,4.53633564,4296.4,4296.3,0.73077405]
[1757096513154,1.32853564,4296.4,4296.3,0.73077405]
[1757096513456,0.5452,4296.7,4296.5,0.1269]
[1757096513653,0.5215,4296.7,4296.6,0.699]
[1757096513853,3.2078,4296.9,4296.7,0.2928]
[1757096514043,3.2078,4296.9,4296.8,0.699]
[1757096514044,3.7293,4296.9,4296.8,0.699]
[1757096514850,3.7293,4296.9,4296.8,0.73077405]
[1757096515457,3.9387,4296.9,4296.8,0.73077405]
[1757096516555,0.7309,4296.9,4296.8,0.73077405]
[1757096522568,0.7309,4296.9,4296.8,0.23877405]
[1757096522859,0.7309,4296.9,4296.8,0.03177405]
[1757096523658,0.7309,4296.9,4296.8,0.73077405]
[1757096525160,0.5215,4296.9,4296.8,0.73077405]
[1757096528868,0.7309,4296.9,4296.8,0.73077405]
[1757096529262,0.2123,4296.9,4296.8,0.73077405]
[1757096529566,0.7309,4297.3,4297.2,0.699]
[1757096529764,0.7309,4297.3,4296.9,0.2928]
[1757096530067,0.82732595,4297.0,4296.9,0.4998]
[1757096531460,0.82732595,4297.0,4296.9,0.699]
[1757096532363,0.7309,4297.0,4296.9,0.699]
[1757096536565,0.8591,4297.0,4296.6,0.2928]
[1757096536873,0.8591,4296.5,4296.4,3.2078]
[1757096537062,0.8591,4296.5,4295.9,3.2078]
[1757096537063,0.5499,4296.0,4295.9,3.2078]
[1757096537264,0.8591,4296.0,4295.4,3.4438]
[1757096537469,0.8591,4296.0,4295.9,0.207]
[1757096537674,0.8591,4296.0,4295.9,0.4998]
[1757096538771,0.7309,4296.0,4295.9,0.699]
[1757096540377,0.2123,4296.0,4295.9,0.699]
[1757096540578,0.3216,4296.4,4296.3,0.2006]
[1757096540981,0.7258,4296.4,4295.6,0.2928]
[1757096541181,0.4042,4296.4,4295.6,0.52557]
[1757096541382,0.1282,4296.5,4295.6,0.93587]
[1757096541383,0.1996,4295.7,4295.6,0.93587]
[1757096541577,0.5212,4295.7,4295.6,0.93587]
[1757096541784,0.5212,4295.7,4295.6,0.7031]
[1757096542283,0.1996,4295.7,4295.6,0.7031]
[1757096542591,0.3216,4296.0,4295.6,0.4103]
[1757096542884,0.3216,4296.5,4296.0,0.128]
[1757096543092,0.7258,4296.5,4296.4,0.7031]
[1757096543787,0.8499,4296.5,4296.4,0.4934]
[1757096543983,0.4042,4296.2,4296.1,0.4934]
[1757096544185,0.7258,4296.2,4296.1,0.7031]
[1757096544884,0.7258,4296.2,4296.1,0.4934]
[1757096545083,0.7258,4296.2,4296.1,0.2006]
[1757096545283,0.8499,4296.0,4295.9,0.4934]
[1757096545481,0.7258,4296.0,4295.9,0.7031]
[1757096546390,0.7258,4296.0,4295.9,3.9109]
[1757096546886,0.5212,4296.0,4295.9,3.9109]
[1757096547488,0.1996,4296.0,4295.9,3.9109]
[1757096547999,0.5212,4296.0,4295.9,3.9109]
[1757096549682,3.4438,4296.8,4296.0,0.128]
[1757096549683,0.3216,4296.7,4296.0,0.128]
[1757096549891,0.7258,4296.7,4296.6,0.4934]
[1757096550584,0.7258,4296.7,4296.6,0.7031]
[1757096551203,0.1996,4296.7,4296.6,0.7031]
[1757096551390,3.4438,4297.3,4296.7,0.2928]
[1757096551592,0.7258,4296.8,4296.7,0.7031]
[1757096552688,0.1996,4297.1,4297.0,0.8311]
[1757096552889,3.2078,4297.3,4297.2,0.4103]
[1757096553084,3.2078,4297.3,4297.2,0.7031]
[1757096553285,3.4074,4297.3,4297.2,0.7031]
[1757096553891,0.1996,4297.3,4297.2,0.7031]
[1757096554587,0.3216,4297.8,4297.3,0.2928]
[1757096554789,0.7258,4297.8,4297.7,0.2006]
[1757096554999,0.7258,4297.8,4297.7,0.4934]
[1757096555596,0.7258,4297.8,4297.7,0.7031]
[1757096559006,3.2078,4297.9,4297.4,3.7012]
[1757096559007,0.7258,4297.5,4297.4,3.7012]
[1757096559193,0.7258,4297.5,4297.4,3.9109]
[1757096559505,0.8499,4297.5,4297.4,3.4084]
[1757096559802,0.8499,4297.5,4297.4,3.9109]
[1757096560298,0.7258,4297.5,4297.4,3.9109]
[1757096561890,0.5212,4297.5,4297.4,3.9109]
[1757096563000,0.1996,4297.5,4297.4,3.9109]
[1757096563200,0.5212,4297.5,4297.4,3.9109]
[1757096563596,0.7258,4297.5,4297.4,3.9109]
[1757096564604,0.1996,4297.5,4297.4,3.9109]
[1757096565202,0.5212,4297.5,4297.4,4.1469]
[1757096566204,0.3216,4297.8,4297.4,4.1469]
[1757096566407,3.612,4297.9,4297.8,0.7031]
[1757096566907,3.9336,4297.9,4297.8,0.7031]
[1757096567602,3.9336,4297.9,4297.8,0.2006]
[1757096567898,0.8499,4297.5,4297.4,0.9391]
[1757096568304,0.7258,4297.5,4297.4,0.9391]
[1757096570306,0.1996,4297.5,4297.4,0.9391]
[1757096571899,0.506,4297.5,4297.4,0.7031]
[1757096572697,0.1996,4297.5,4297.4,0.7031]
[1757096573003,0.7177,4297.5,4297.4,0.7031]
[1757096573507,0.5111,4297.8,4297.7,0.7335]
[1757096573894,0.7228,4297.8,4297.7,0.7335]
[1757096575112,0.4164,4297.8,4297.2,0.5552]
[1757096575307,0.7228,4297.0,4296.9,0.7335]
[1757096576411,0.5111,4297.0,4296.9,0.7335]
[1757096576617,3.2078,4297.4,4297.0,0.1267]
[1757096576806,0.5111,4297.3,4297.2,0.7335]
[1757096577105,0.7228,4297.3,4297.2,0.7335]
[1757096578698,0.7228,4297.3,4296.9,0.3192]
[1757096578900,0.4164,4296.3,4296.2,0.7335]
[1757096579104,0.4164,4296.3,4295.8,3.2078]
[1757096579105,0.7228,4296.3,4295.8,3.2078]
[1757096579411,0.7228,4295.7,4295.6,0.7335]
[1757096579704,0.5111,4295.7,4295.6,0.7335]
[1757096579905,0.7228,4295.7,4295.6,0.7335]
[1757096580304,3.3331,4296.0,4295.6,0.7335]
[1757096580499,0.2047,4295.8,4295.7,0.3192]
[1757096580704,3.2078,4296.0,4295.8,0.3192]
[1757096580908,0.2047,4296.2,4296.1,0.4143]
[1757096581111,0.2047,4296.2,4296.1,0.7335]
[1757096581308,0.5111,4296.2,4296.1,0.7335]
[1757096581611,0.7228,4296.2,4296.1,0.7335]
[1757096582514,0.2047,4296.2,4296.1,0.7335]
[1757096582711,0.236,4296.5,4296.1,0.4143]
[1757096583012,0.3064,4296.4,4296.2,0.3192]
[1757096583213,0.2047,4296.3,4296.2,0.7335]
[1757096584208,3.2078,4296.6,4296.5,0.8602]
[1757096584411,0.5111,4297.2,4297.1,0.7335]
[1757096585114,0.3613,4297.5,4297.1,0.7335]
[1757096585115,0.3064,4297.7,4297.2,0.3192]
[1757096585317,0.7471,4297.7,4297.6,0.7335]
[1757096585612,0.9588,4297.7,4297.6,0.7335]
[1757096586209,0.7228,4297.7,4297.6,0.7335]
[1757096586507,0.9588,4297.7,4297.6,0.5313]
[1757096586715,0.7228,4297.7,4297.6,0.7335]
[1757096586917,0.9588,4297.7,4297.6,0.7335]
[1757096587107,0.2047,4297.7,4297.6,0.7335]
[1757096587307,0.3064,4298.0,4297.7,0.3192]
[1757096587516,3.8602,4298.2,4298.1,0.4143]
[1757096587809,3.8602,4298.2,4298.1,0.7335]
[1757096588010,4.1666,4298.2,4298.1,0.2121]
[1757096588211,3.9306,4298.2,4298.1,0.5313]
[1757096588609,3.9306,4298.2,4298.1,0.7335]
[1757096590514,3.9306,4298.2,4298.1,0.2121]
[1757096590716,3.6242,4298.2,4297.5,3.3345]
[1757096591013,0.8481,4298.0,4297.9,0.5313]
[1757096591415,0.8481,4298.0,4297.6,0.3192]
[1757096591613,0.3064,4297.9,4297.1,0.3192]
[1757096591826,0.7228,4297.2,4297.1,0.7335]
[1757096594117,0.4164,4297.2,4297.1,0.7335]
[1757096594615,0.2047,4297.2,4297.1,0.7335]
[1757096595218,0.3064,4297.9,4297.1,0.4143]
[1757096595515,0.2047,4297.9,4297.8,0.7335]
[1757096596218,0.5111,4297.9,4297.8,0.7335]
[1757096596419,0.2047,4297.9,4297.8,0.7335]
[1757096596616,0.7228,4297.9,4297.8,0.7335]
[1757096598513,3.4127,4298.2,4298.1,0.4098]
[1757096598718,3.4127,4298.2,4298.1,0.7305]
[1757096599113,0.2979,4298.5,4298.1,0.7305]
[1757096599313,0.2049,4298.2,4298.1,0.4098]
[1757096599509,0.6986,4298.2,4298.1,0.4098]
[1757096599916,0.6986,4298.2,4298.1,0.7305]
[1757096600316,3.2078,4298.7,4298.1,0.7305]
[1757096600510,0.5028,4298.8,4298.7,0.7305]
[1757096601123,0.6986,4298.8,4298.7,0.7305]
[1757096601320,0.6986,4298.8,4298.2,0.236]
[1757096602316,0.6986,4298.8,4298.7,0.7305]
[1757096602712,0.6986,4298.8,4298.7,0.2078]
[1757096603014,0.6986,4298.8,4298.3,0.3207]
[1757096603418,0.6986,4298.8,4298.7,0.2078]
[1757096603820,0.6986,4298.2,4298.1,0.4438]
[1757096604217,0.6986,4298.2,4298.1,0.7645]
[1757096605122,0.6986,4298.2,4298.1,0.9665]
[1757096605724,0.6986,4298.2,4298.1,0.7305]
[1757096606020,0.6986,4298.2,4298.1,0.2078]
[1757096606212,0.6986,4298.2,4298.1,0.7305]
[1757096607018,0.6986,4298.2,4298.1,0.2078]
[1757096607224,0.6986,4298.2,4298.1,0.7305]
[1757096608218,0.1208,4298.5,4297.7,0.3207]
[1757096608219,0.6986,4297.8,4297.7,0.3207]
[1757096608420,0.6986,4297.8,4297.5,0.236]
[1757096609626,0.6986,4297.8,4297.7,0.5285]
[1757096609823,0.6986,4297.8,4297.7,0.7305]
[1757096611315,0.2979,4298.2,4297.7,0.7305]
[1757096611519,0.6986,4298.4,4298.3,0.7305]
[1757096614233,0.6986,4298.4,4298.3,1.01491162]
[1757096615925,0.6986,4298.4,4298.3,0.49221162]
[1757096616120,0.6986,4298.4,4298.3,0.28441162]
[1757096617024,0.6986,4298.4,4298.3,0.4923266]
[1757096617430,0.6986,4298.4,4298.3,0.8130266]
[1757096618330,0.6986,4298.4,4298.3,1.0150266]
[1757096620327,0.6986,4298.4,4298.3,0.4923266]
[1757096620534,0.6986,4298.4,4298.3,0.2845266]
[1757096620838,0.6986,4298.4,4298.3,0.4923266]
[1757096621022,0.6986,4298.4,4298.3,1.0150266]
[1757096622632,0.2049,4298.4,4298.3,1.0150266]
[1757096622842,0.5028,4298.4,4298.3,1.0150266]
[1757096624334,0.6986,4298.4,4298.3,1.0150266]
[1757096625531,0.6986,4298.4,4298.3,0.2845266]
[1757096626031,0.93125,4298.4,4298.3,0.2845266]
[1757096626231,4.97215968,4298.4,4298.3,0.2845266]
[1757096626636,4.73950968,4298.4,4298.3,0.2845266]
[1757096627239,4.73950968,4298.4,4297.5,0.236]
[1757096627434,0.6986,4297.7,4297.6,1.01542042]
[1757096632741,0.2049,4297.7,4297.6,1.01542042]
[1757096633336,0.3158,4298.0,4297.9,0.4096]
[1757096633540,0.5097,4298.0,4297.9,0.99842042]
[1757096634546,0.7053,4298.0,4297.9,0.99842042]
[1757096635145,0.7053,4298.0,4297.9,0.28492042]
[1757096635146,0.8232,4298.0,4297.9,0.28492042]
[1757096636542,0.8232,4298.0,4297.9,0.48032042]
[1757096636742,0.8232,4298.0,4297.9,0.78422042]
[1757096638552,0.8232,4298.0,4297.9,0.78448862]
[1757096638852,0.8232,4298.0,4297.9,0.48058862]
[1757096639453,0.8232,4298.0,4297.9,0.78448862]
[1757096640455,0.8232,4298.0,4297.9,0.28518862]
[1757096640752,0.8232,4298.0,4297.9,0.78448862]
[1757096641355,0.7053,4298.0,4297.9,0.99868862]
[1757096641554,0.8232,4298.0,4297.9,0.28518862]
[1757096642051,1.4208926,4298.0,4297.9,0.28518862]
[1757096644043,1.4208926,4298.0,4297.4,0.3039]
[1757096644044,5.4208926,4298.0,4297.3,3.2078]
[1757096644250,0.8232,4297.5,4297.4,0.2849622]
[1757096644559,0.8232,4297.5,4297.4,0.9984622]
[1757096644756,0.8232,4297.5,4297.4,0.7135]
[1757096645459,0.8232,4297.5,4297.4,0.4993]
[1757096646245,0.8232,4297.5,4297.4,0.1954]
[1757096646450,0.3895,4297.2,4296.5,3.572]
[1757096646655,0.7053,4296.7,4296.6,0.7135]
[1757096646944,0.7053,4296.7,4296.6,0.1954]
[1757096647759,0.7053,4296.7,4296.3,0.3039]
[1757096647958,0.1179,4296.5,4296.3,0.3039]
[1757096648157,0.7053,4296.4,4296.3,0.3039]
[1757096648356,0.7053,4296.4,4296.3,0.4993]
[1757096648550,0.7053,4296.4,4296.0,0.3039]
[1757096648850,0.7053,4295.7,4295.6,0.7135]
[1757096649252,0.7053,4295.7,4295.6,0.1954]
[1757096649446,0.7053,4295.7,4295.6,0.7135]
[1757096650853,0.3895,4295.7,4295.4,3.5117]
[1757096651154,0.5097,4295.6,4295.5,0.7135]
[1757096651363,0.7053,4295.6,4295.5,0.7135]
[1757096655254,0.1939,4295.6,4295.5,0.838]
[1757096655459,0.5097,4295.6,4295.5,0.838]
[1757096655862,0.7053,4295.6,4295.5,0.7135]
[1757096661267,0.7053,4295.6,4295.5,0.505]
[1757096665366,0.7137,4295.3,4295.2,0.7249]
[1757096666865,0.7137,4295.3,4294.6,0.3096]
[1757096667962,0.7137,4295.3,4295.2,0.2134]
[1757096669260,0.7137,4295.3,4294.6,0.3096]
[1757096670470,0.7137,4295.3,4295.2,0.2134]
[1757096670662,0.7137,4295.3,4295.2,0.523]
[1757096673571,0.7137,4295.3,4295.2,0.7249]
[1757096674465,3.2078,4295.6,4295.3,0.3096]
[1757096674674,3.2078,4295.6,4295.5,0.541]
[1757096674876,3.2078,4295.6,4295.5,0.8506]
[1757096675269,3.80486868,4295.6,4295.5,0.8506]
[1757096675575,4.51856868,4295.6,4295.5,0.523]
[1757096675973,4.51856868,4295.6,4295.5,0.2134]
[1757096676278,0.4084,4295.2,4295.1,0.523]
[1757096676472,0.7137,4295.2,4295.1,0.2134]
[1757096676775,0.1268,4295.0,4294.8,0.3096]
[1757096677071,1.00616281,4294.9,4293.7,35.3278]
[1757096677374,3.3346,4295.0,4294.3,0.523]
[1757096677375,0.7137,4294.4,4294.3,0.523]
[1757096677872,0.7137,4294.4,4294.3,0.7249]
[1757096679773,0.7137,4294.4,4294.3,0.2134]
[1757096680075,0.3053,4294.3,4293.8,0.3096]
[1757096680270,0.7137,4294.3,4294.2,0.7249]
[1757096681876,0.2108,4293.9,4293.8,0.523]
[1757096682077,0.2108,4293.9,4293.7,3.2078]
[1757096682078,0.3053,4293.8,4293.7,3.2078]
[1757096682377,0.3053,4293.8,4293.0,0.541]
[1757096682378,0.3053,4293.4,4293.0,0.541]
[1757096682573,3.80549464,4293.8,4293.7,0.523]
[1757096682574,3.9215,4293.8,4293.7,0.523]
[1757096682773,4.51928446,4293.8,4293.7,0.523]
[1757096683279,4.75528446,4293.8,4293.7,0.523]
[1757096684077,4.75528446,4293.8,4293.7,0.2134]
[1757096684579,4.51928446,4293.8,4293.0,0.1257]
[1757096684770,0.2108,4293.2,4293.1,0.7249]
[1757096684967,0.5161,4293.2,4293.1,0.7249]
[1757096685166,0.7137,4293.2,4293.1,0.7249]
[1757096686076,0.4084,4293.2,4292.6,0.3096]
[1757096686283,0.2108,4292.7,4292.6,0.64825]
[1757096686580,0.2108,4292.7,4292.0,0.1257]
[1757096686581,0.7137,4292.7,4292.0,0.1257]
[1757096686778,0.2108,4292.1,4292.0,0.541]
[1757096686979,0.5161,4292.1,4292.0,0.541]
[1757096687374,0.5161,4292.1,4292.0,0.8506]
[1757096687979,0.4321,4292.5,4292.0,0.8506]
[1757096688284,3.5126,4292.9,4292.4,0.7333]
[1757096688476,3.7201,4292.9,4292.8,0.7282]
[1757096689378,3.9321,4292.9,4292.8,0.7282]
[1757096689575,3.9321,4292.9,4292.4,0.318]
[1757096690082,4.1681,4292.9,4292.1,0.318]
[1757096690577,3.9321,4292.9,4292.1,0.318]
[1757096690883,4.1681,4292.9,4292.1,0.318]
[1757096691077,3.9321,4292.9,4292.8,0.7282]
[1757096691481,0.236,4293.0,4292.8,0.4102]
[1757096691679,0.7483,4293.0,4292.9,0.7282]
[1757096691975,0.2075,4293.0,4292.9,0.7282]
[1757096692378,0.5408,4293.3,4292.9,0.7282]
[1757096692576,0.7483,4293.3,4293.2,0.7282]
[1757096692977,0.9603,4293.3,4293.2,0.7282]
[1757096693484,0.7243,4293.3,4293.2,0.7282]
[1757096695888,0.9603,4293.3,4293.2,0.7282]
[1757096699091,0.236,4293.5,4293.3,0.318]
[1757096699393,0.4435,4293.5,4293.4,0.7282]
[1757096699889,0.7483,4293.5,4293.4,0.7282]
[1757096700593,0.1268,4294.5,4293.4,0.7282]
[1757096700594,0.9603,4294.1,4294.0,0.4102]
[1757096700883,0.1247,4294.0,4293.6,0.318]
[1757096701089,0.7243,4293.7,4293.6,0.318]
[1757096701287,0.7243,4293.7,4293.6,0.7282]
[1757096702082,0.2075,4293.7,4293.6,0.7282]
[1757096702291,0.3048,4294.0,4293.6,0.7282]
[1757096702593,0.5123,4293.8,4293.7,0.7282]
[1757096702891,0.7243,4293.8,4293.7,0.7282]
[1757096703294,0.849,4293.5,4293.0,0.318]
[1757096703795,1.085,4293.5,4293.0,0.318]
[1757096704291,0.2075,4292.9,4292.8,0.7282]
[1757096705589,0.3048,4293.1,4293.0,0.5301]
[1757096705796,0.7243,4293.1,4293.0,0.8481]
[1757096706184,0.7243,4293.1,4293.0,0.7282]